fUSD/lending_fUSD_20260630
["ID","MTS","AMOUNT","RATE_DAILY","PERIOD"]
[426785112,1782831044000,-5543.29398975,0.00014504,2]
[426785109,1782831044000,-3077.33740244,0.00014504,2]
[426785110,1782831044000,-700.37,0.00014504,2]
[426785115,1782831044000,-8301.93971989,0.00014504,2]
[426785114,1782831044000,-9999.99,0.00014504,2]
[426785113,1782831044000,-1342.4,0.00014504,2]
[426785117,1782831044000,-374.83658851,0.00014504,2]
[426785118,1782831044000,-1361.39009554,0.00014504,2]
[426785116,1782831044000,-7625.8003797,0.00014504,2]
[426785134,1782831047000,-150.0,0.00011385,2]
[426785133,1782831047000,-160.0,9.782e-05,2]
[426785135,1782831047000,-890.0,0.00014504,2]
[426785138,1782831058000,155.0,0.0002853,30]
[426785139,1782831059000,155.0,0.0002953,30]
[426785140,1782831102000,563.0,0.0002853,30]
[426785141,1782831104000,563.0,0.0002953,30]
[426785142,1782831174000,158.0,0.0002853,30]
[426785143,1782831175000,158.0,0.0002953,30]
[426785144,1782831206000,151.0,0.0002853,30]
[426785145,1782831207000,151.0,0.0002953,30]
[426785146,1782831279000,879.21018526,8e-05,2]
[426785148,1782831311000,1500.0,0.0003,30]
[426785149,1782831392000,-2080.89885298,9.286e-05,2]
[426785150,1782831409000,1000.0,0.0003,30]
[426785151,1782831420000,740.60236112,0.0003,30]
[426785166,1782831470000,-500.0,9.472e-05,2]
[426785155,1782831470000,-464.82914702,9.286e-05,2]
[426785154,1782831470000,-37294.94803624,9.04e-05,2]
[426785157,1782831470000,-174.0795069,9.286e-05,2]
[426785156,1782831470000,-162.234,9.286e-05,2]
[426785158,1782831470000,-263.0,9.471e-05,2]
[426785160,1782831470000,-322.17530413,9.472e-05,2]
[426785159,1782831470000,-150.0,9.471e-05,2]
[426785161,1782831470000,-500.0,9.472e-05,2]
[426785163,1782831470000,-250.27076225,9.472e-05,2]
[426785162,1782831470000,-213.13296182,9.472e-05,2]
[426785164,1782831470000,-500.0,9.472e-05,2]
[426785165,1782831470000,-500.0,9.472e-05,2]
[426785173,1782831470000,-500.0,9.472e-05,2]
[426785167,1782831470000,-195.74664129,9.472e-05,2]
[426785180,1782831470000,-500.0,9.472e-05,2]
[426785179,1782831470000,-500.0,9.472e-05,2]
[426785168,1782831470000,-162.32479247,9.472e-05,2]
[426785176,1782831470000,-500.0,9.472e-05,2]
[426785177,1782831470000,-477.07259944,9.472e-05,2]
[426785175,1782831470000,-500.0,9.472e-05,2]
[426785178,1782831470000,-500.0,9.472e-05,2]
[426785172,1782831470000,-500.0,9.472e-05,2]
[426785170,1782831470000,-500.0,9.472e-05,2]
[426785171,1782831470000,-500.0,9.472e-05,2]
[426785169,1782831470000,-500.0,9.472e-05,2]
[426785174,1782831470000,-500.0,9.472e-05,2]
[426785191,1782831471000,-500.0,9.472e-05,2]
[426785199,1782831471000,-500.0,9.472e-05,2]
[426785198,1782831471000,-500.0,9.472e-05,2]
[426785197,1782831471000,-500.0,9.472e-05,2]
[426785196,1782831471000,-500.0,9.472e-05,2]
[426785195,1782831471000,-500.0,9.472e-05,2]
[426785193,1782831471000,-500.0,9.472e-05,2]
[426785194,1782831471000,-500.0,9.472e-05,2]
[426785192,1782831471000,-500.0,9.472e-05,2]
[426785200,1782831471000,-500.0,9.472e-05,2]
[426785189,1782831471000,-500.0,9.472e-05,2]
[426785188,1782831471000,-500.0,9.472e-05,2]
[426785186,1782831471000,-448.54399386,9.472e-05,2]
[426785187,1782831471000,-500.0,9.472e-05,2]
[426785185,1782831471000,-500.0,9.472e-05,2]
[426785184,1782831471000,-500.0,9.472e-05,2]
[426785183,1782831471000,-500.0,9.472e-05,2]
[426785182,1782831471000,-500.0,9.472e-05,2]
[426785181,1782831471000,-500.0,9.472e-05,2]
[426785190,1782831471000,-500.0,9.472e-05,2]
[426785202,1782831471000,-500.0,9.472e-05,2]
[426785201,1782831471000,-500.0,9.472e-05,2]
[426785204,1782831471000,-500.0,9.472e-05,2]
[426785224,1782831471000,-409.76061128,9.472e-05,2]
[426785223,1782831471000,-500.0,9.472e-05,2]
[426785222,1782831471000,-500.0,9.472e-05,2]
[426785221,1782831471000,-500.0,9.472e-05,2]
[426785216,1782831471000,-500.0,9.472e-05,2]
[426785218,1782831471000,-500.0,9.472e-05,2]
[426785217,1782831471000,-500.0,9.472e-05,2]
[426785219,1782831471000,-500.0,9.472e-05,2]
[426785215,1782831471000,-500.0,9.472e-05,2]
[426785220,1782831471000,-500.0,9.472e-05,2]
[426785212,1782831471000,-500.0,9.472e-05,2]
[426785213,1782831471000,-500.0,9.472e-05,2]
[426785205,1782831471000,-500.0,9.472e-05,2]
[426785206,1782831471000,-500.0,9.472e-05,2]
[426785207,1782831471000,-500.0,9.472e-05,2]
[426785210,1782831471000,-500.0,9.472e-05,2]
[426785203,1782831471000,-500.0,9.472e-05,2]
[426785209,1782831471000,-500.0,9.472e-05,2]
[426785208,1782831471000,-500.0,9.472e-05,2]
[426785211,1782831471000,-199.76418362,9.472e-05,2]
[426785214,1782831471000,-500.0,9.472e-05,2]
[426785235,1782831472000,-25964.94777075,9.475e-05,2]
[426785233,1782831472000,-500.0,9.472e-05,2]
[426785232,1782831472000,-297.16968893,9.472e-05,2]
[426785231,1782831472000,-500.0,9.472e-05,2]
[426785230,1782831472000,-500.0,9.472e-05,2]
[426785228,1782831472000,-500.0,9.472e-05,2]
[426785226,1782831472000,-550.0,9.472e-05,2]
[426785229,1782831472000,-500.0,9.472e-05,2]
[426785227,1782831472000,-500.0,9.472e-05,2]
[426785225,1782831472000,-500.0,9.472e-05,2]
[426785234,1782831472000,-500.0,9.472e-05,2]
[426785236,1782831497000,454.82,0.00030137,30]
[426785238,1782831503000,-145495.8780709,9.475e-05,2]
[426785237,1782831503000,-34504.1219291,9.474e-05,2]
[426785240,1782831554000,-3808.6737112,9.475e-05,2]
[426785239,1782831554000,-1191.3262888,9.474e-05,2]
[426785242,1782831555000,-5000.0,9.475e-05,2]
[426785241,1782831555000,-5000.0,9.475e-05,2]
[426785245,1782831556000,-5000.0,9.475e-05,2]
[426785244,1782831556000,-5000.0,9.475e-05,2]
[426785243,1782831556000,-5000.0,9.475e-05,2]
[426785246,1782831557000,-5000.0,9.475e-05,2]
[426785247,1782831557000,-5000.0,9.475e-05,2]
[426785248,1782831557000,-5000.0,9.475e-05,2]
[426785251,1782831558000,-5000.0,9.475e-05,2]
[426785250,1782831558000,-5000.0,9.475e-05,2]
[426785249,1782831558000,-5000.0,9.475e-05,2]
[426785254,1782831559000,-5000.0,9.475e-05,2]
[426785253,1782831559000,-5000.0,9.475e-05,2]
[426785252,1782831559000,-5000.0,9.475e-05,2]
[426785255,1782831560000,-5000.0,9.475e-05,2]
[426785257,1782831560000,-5000.0,9.475e-05,2]
[426785256,1782831560000,-5000.0,9.475e-05,2]
[426785259,1782831561000,-5000.0,9.475e-05,2]
[426785258,1782831561000,-5000.0,9.475e-05,2]
[426785260,1782831562000,-5000.0,9.475e-05,2]
[426785262,1782831563000,-5000.0,9.475e-05,2]
[426785261,1782831563000,-5000.0,9.475e-05,2]
[426785263,1782831564000,-5000.0,9.475e-05,2]
[426785264,1782831567000,-5000.0,9.475e-05,2]
[426785265,1782831574000,-2400.0,9.475e-05,2]
[426785267,1782831622000,-355487.77474715,9.475e-05,2]
[426785266,1782831622000,-150.0,9.474e-05,2]
[426785270,1782831622000,-216.62538722,9.558e-05,2]
[426785269,1782831622000,-160.0,9.557e-05,2]
[426785271,1782831622000,-1959.69039517,0.0001,2]
[426785268,1782831622000,-160.0,9.546e-05,2]
[426785273,1782831622000,-19140.88523678,0.0001,2]
[426785276,1782831622000,-250.0,0.00010215,2]
[426785277,1782831622000,-151.0,0.00010302,2]
[426785272,1782831622000,-2775.36552965,0.0001,2]
[426785275,1782831622000,-263.60729135,0.000101,2]
[426785274,1782831622000,-163.88,0.0001,2]
[426785278,1782831622000,-151.0,0.00010302,2]
[426785281,1782831623000,-1195.59344699,0.000109,2]
[426785279,1782831623000,-210.0,0.00010422,2]
[426785282,1782831623000,-7634.28376667,0.00011,2]
[426785283,1782831623000,-1366.14960008,0.00011099,2]
[426785280,1782831623000,-272.29975839,0.000107,2]
[426785285,1782831623000,-1366.1496,0.00011209,2]
[426785286,1782831623000,-2844.43303195,0.00011241,2]
[426785287,1782831623000,-1513.27810185,0.000114,2]
[426785288,1782831623000,-1195.59344698,0.00011901,2]
[426785284,1782831623000,-2844.43303198,0.00011099,2]
[426785289,1782831632000,175.18953357,9.474e-05,2]
[426785290,1782831647000,150.0,0.00011756,2]
[426785291,1782831649000,500.0,9.474e-05,2]
[426785294,1782831649000,500.0,9.474e-05,2]
[426785292,1782831649000,500.0,9.474e-05,2]
[426785295,1782831649000,500.0,9.474e-05,2]
[426785296,1782831649000,500.0,9.474e-05,2]
[426785293,1782831649000,500.0,9.474e-05,2]
[426785297,1782831649000,500.0,9.474e-05,2]
[426785302,1782831650000,269.47137192,9.474e-05,2]
[426785301,1782831650000,500.0,9.474e-05,2]
[426785300,1782831650000,500.0,9.474e-05,2]
[426785299,1782831650000,500.0,9.474e-05,2]
[426785298,1782831650000,500.0,9.474e-05,2]
[426785303,1782831725000,5183.5825,9.372e-05,2]
[426785305,1782831745000,219.89383982,0.00011491,2]
[426785304,1782831745000,385.79570652,0.00011715,2]
[426785306,1782831755000,4186.6412,9.375e-05,2]
[426785307,1782831777000,164.11917772,9.474e-05,2]
[426785308,1782831779000,150.21447496,9.474e-05,2]
[426785310,1782831795000,225.52271289,9.474e-05,2]
[426785311,1782831797000,962.2619641,9.564e-05,2]
[426785312,1782831860000,150.0,0.0003013,30]
[426785313,1782831911000,155.0,0.00028529,30]
[426785314,1782831913000,155.0,0.00029529,30]
[426785315,1782831927000,1409.55,0.00011772,2]
[426785316,1782831961000,256.81492794,0.00011901,2]
[426785317,1782832004000,256.0,0.00028529,30]
[426785318,1782832006000,256.0,0.00029529,30]
[426785319,1782832007000,-150.0,0.00012162,2]
[426785321,1782832007000,-59.61617005,0.00012162,2]
[426785322,1782832007000,264.260098,9.564e-05,2]
[426785320,1782832007000,-153.0,0.00012162,2]
[426785323,1782832040000,175.97,0.0002863,30]
[426785324,1782832052000,316.0,0.00028529,30]
[426785325,1782832053000,316.0,0.00029529,30]
[426785326,1782832070000,50000.0,0.00030137,30]
[426785327,1782832077000,170.31,0.0002863,30]
[426785328,1782832078000,50000.0,0.00030137,31]
[426785329,1782832093000,186.01,0.0002863,30]
[426785330,1782832094000,50000.0,0.00030137,33]
[426785331,1782832119000,151.0,0.00028539,30]
[426785332,1782832121000,152.0,0.00029539,30]
[426785333,1782832121000,50000.0,0.00030137,34]
[426785334,1782832125000,50000.0,0.00030137,35]
[426785336,1782832140000,297.8750942,9.568e-05,2]
[426785335,1782832140000,50000.0,0.00030137,36]
[426785337,1782832161000,1872.27,0.00030137,30]
[426785338,1782832162000,500.0,0.00011522,2]
[426785339,1782832169000,186.02,0.0002863,30]
[426785340,1782832170000,936.13,0.00030137,30]
[426785341,1782832171000,372.0,0.00028539,30]
[426785342,1782832173000,372.0,0.00029539,30]
[426785344,1782832182000,468.07,0.00030137,30]
[426785343,1782832182000,1736.11,0.00011499,2]
[426785345,1782832187000,50000.0,0.00030137,37]
[426785347,1782832199000,234.03,0.00030137,30]
[426785346,1782832199000,50000.0,0.00030137,38]
[426785348,1782832217000,1583.81,0.00011346,2]
[426785351,1782832217000,1583.81,0.00011913,2]
[426785350,1782832217000,4489.0,0.00030136,30]
[426785349,1782832217000,1583.81,0.00011629,2]
[426785353,1782832222000,163.56,0.00011343,2]
[426785375,1782832232000,-151.0,0.00012162,2]
[426785376,1782832232000,-75.95896043,0.00012162,2]
[426785378,1782832232000,-151.0,0.00012162,2]
[426785379,1782832232000,-150.0,0.00012162,2]
[426785381,1782832232000,-135.64103957,0.00012162,2]
[426785382,1782832232000,-152.0,0.00012162,2]
[426785386,1782832232000,-151.0,0.00012162,2]
[426785383,1782832232000,-152.0,0.00012162,2]
[426785384,1782832232000,-150.0,0.00012162,2]
[426785385,1782832232000,-151.0,0.00012162,2]
[426785387,1782832232000,-150.0,0.00012162,2]
[426785389,1782832232000,-151.0,0.00012162,2]
[426785392,1782832232000,-888.0,0.00012162,2]
[426785391,1782832232000,-151.0,0.00012162,2]
[426785390,1782832232000,-150.0,0.00012162,2]
[426785388,1782832232000,-150.0,0.00012162,2]
[426785377,1782832232000,-75.04103957,0.00012162,2]
[426785371,1782832232000,-151.0,0.00012162,2]
[426785374,1782832232000,-151.0,0.00012162,2]
[426785372,1782832232000,-907.0,0.00012162,2]
[426785356,1782832232000,-178.70226194,0.00012062,2]
[426785358,1782832232000,-8.87773806,0.00012062,2]
[426785357,1782832232000,-151.0,0.00012062,2]
[426785362,1782832232000,-178.70226193,0.00012103,2]
[426785364,1782832232000,-26.49651578,0.0001216,2]
[426785363,1782832232000,-178.70226193,0.00012144,2]
[426785365,1782832232000,-138.69240634,0.0001216,2]
[426785393,1782832232000,-885.0,0.00012162,2]
[426785366,1782832232000,-150.0,0.00012161,2]
[426785359,1782832232000,-142.12226194,0.00012062,2]
[426785360,1782832232000,-153.0,0.00012064,2]
[426785361,1782832232000,-151.0,0.00012072,2]
[426785368,1782832232000,-66.47072429,0.00012162,2]
[426785370,1782832232000,-153.0,0.00012162,2]
[426785369,1782832232000,-832.52927571,0.00012162,2]
[426785373,1782832232000,-615.60251634,0.00012162,2]
[426785367,1782832232000,-90.38382995,0.00012162,2]
[426785395,1782832232000,-894.0,0.00012162,2]
[426785380,1782832232000,-62.35896043,0.00012162,2]
[426785396,1782832232000,-905.0,0.00012162,2]
[426785419,1782832232000,-641.05237466,0.00012244,2]
[426785422,1782832232000,-740.15477376,0.00012244,2]
[426785416,1782832232000,-915.0,0.0001221,2]
[426785426,1782832232000,-740.15477376,0.00012244,2]
[426785418,1782832232000,-500.0,0.00012244,2]
[426785425,1782832232000,-740.15477376,0.00012244,2]
[426785424,1782832232000,-740.15477376,0.00012244,2]
[426785423,1782832232000,-740.15477376,0.00012244,2]
[426785428,1782832232000,-740.15477376,0.00012244,2]
[426785432,1782832232000,-740.15477376,0.00012244,2]
[426785434,1782832232000,-740.15477376,0.00012244,2]
[426785431,1782832232000,-740.15477376,0.00012244,2]
[426785394,1782832232000,-153.0,0.00012162,2]
[426785427,1782832232000,-740.15477376,0.00012244,2]
[426785429,1782832232000,-740.15477376,0.00012244,2]
[426785430,1782832232000,-740.15477376,0.00012244,2]
[426785435,1782832232000,-740.15477376,0.00012244,2]
[426785421,1782832232000,-740.15477376,0.00012244,2]
[426785420,1782832232000,-740.15477376,0.00012244,2]
[426785433,1782832232000,-740.15477376,0.00012244,2]
[426785415,1782832232000,-1583.81,0.00012197,2]
[426785417,1782832232000,-903.0,0.0001221,2]
[426785400,1782832232000,-151.0,0.00012163,2]
[426785397,1782832232000,-886.0,0.00012163,2]
[426785402,1782832232000,-905.0,0.00012165,2]
[426785401,1782832232000,-886.0,0.00012164,2]
[426785403,1782832232000,-150.0,0.00012167,2]
[426785405,1782832232000,-884.0,0.00012171,2]
[426785404,1782832232000,-891.0,0.00012169,2]
[426785406,1782832232000,-908.0,0.00012174,2]
[426785398,1782832232000,-886.0,0.00012163,2]
[426785410,1782832232000,-151.0,0.00012185,2]
[426785408,1782832232000,-887.0,0.0001218,2]
[426785412,1782832232000,-19372.94,0.0001219,2]
[426785413,1782832232000,-887.0,0.00012191,2]
[426785409,1782832232000,-216.62538722,0.00012182,2]
[426785414,1782832232000,-894.0,0.00012191,2]
[426785407,1782832232000,-910.0,0.0001218,2]
[426785411,1782832232000,-281.93351834,0.00012185,2]
[426785461,1782832233000,-740.15477376,0.00012244,2]
[426785459,1782832233000,-740.15477376,0.00012244,2]
[426785460,1782832233000,-740.15477376,0.00012244,2]
[426785453,1782832233000,-740.15477376,0.00012244,2]
[426785454,1782832233000,-740.15477376,0.00012244,2]
[426785457,1782832233000,-740.15477376,0.00012244,2]
[426785462,1782832233000,-740.15477376,0.00012244,2]
[426785456,1782832233000,-740.15477376,0.00012244,2]
[426785464,1782832233000,-740.15477376,0.00012244,2]
[426785469,1782832233000,-740.15477376,0.00012244,2]
[426785452,1782832233000,-740.15477376,0.00012244,2]
[426785472,1782832233000,-740.15477376,0.00012244,2]
[426785455,1782832233000,-740.15477376,0.00012244,2]
[426785458,1782832233000,-740.15477376,0.00012244,2]
[426785444,1782832233000,-740.15477376,0.00012244,2]
[426785449,1782832233000,-740.15477376,0.00012244,2]
[426785445,1782832233000,-740.15477376,0.00012244,2]
[426785447,1782832233000,-740.15477376,0.00012244,2]
[426785448,1782832233000,-740.15477376,0.00012244,2]
[426785446,1782832233000,-740.15477376,0.00012244,2]
[426785443,1782832233000,-740.15477376,0.00012244,2]
[426785440,1782832233000,-740.15477376,0.00012244,2]
[426785450,1782832233000,-740.15477376,0.00012244,2]
[426785441,1782832233000,-740.15477376,0.00012244,2]
[426785439,1782832233000,-740.15477376,0.00012244,2]
[426785436,1782832233000,-740.15477376,0.00012244,2]
[426785437,1782832233000,-740.15477376,0.00012244,2]
[426785438,1782832233000,-740.15477376,0.00012244,2]
[426785468,1782832233000,-740.15477376,0.00012244,2]
[426785451,1782832233000,-740.15477376,0.00012244,2]
[426785466,1782832233000,-740.15477376,0.00012244,2]
[426785442,1782832233000,-740.15477376,0.00012244,2]
[426785463,1782832233000,-740.15477376,0.00012244,2]
[426785470,1782832233000,-740.15477376,0.00012244,2]
[426785499,1782832233000,-429.79207454,0.00012244,2]
[426785496,1782832233000,-983.96006241,0.00012244,2]
[426785497,1782832233000,-983.96006241,0.00012244,2]
[426785498,1782832233000,-983.96006241,0.00012244,2]
[426785495,1782832233000,-983.96006241,0.00012244,2]
[426785500,1782832233000,-339.86301301,0.00012244,2]
[426785491,1782832233000,-495.152271,0.00012244,2]
[426785493,1782832233000,-152.29534642,0.00012244,2]
[426785487,1782832233000,-983.96006241,0.00012244,2]
[426785485,1782832233000,-983.96006241,0.00012244,2]
[426785492,1782832233000,-831.66471599,0.00012244,2]
[426785494,1782832233000,-983.96006241,0.00012244,2]
[426785490,1782832233000,-488.80779141,0.00012244,2]
[426785489,1782832233000,-499.6523817,0.00012244,2]
[426785488,1782832233000,-484.30768071,0.00012244,2]
[426785483,1782832233000,-983.96006241,0.00012244,2]
[426785486,1782832233000,-983.96006241,0.00012244,2]
[426785467,1782832233000,-740.15477376,0.00012244,2]
[426785473,1782832233000,-740.15477376,0.00012244,2]
[426785471,1782832233000,-740.15477376,0.00012244,2]
[426785474,1782832233000,-740.15477376,0.00012244,2]
[426785475,1782832233000,-740.15477376,0.00012244,2]
[426785477,1782832233000,-474.53330864,0.00012244,2]
[426785465,1782832233000,-740.15477376,0.00012244,2]
[426785476,1782832233000,-265.62146512,0.00012244,2]
[426785482,1782832233000,-983.96006241,0.00012244,2]
[426785484,1782832233000,-983.96006241,0.00012244,2]
[426785478,1782832233000,-740.15477376,0.00012244,2]
[426785479,1782832233000,-983.96006241,0.00012244,2]
[426785481,1782832233000,-983.96006241,0.00012244,2]
[426785480,1782832233000,-983.96006241,0.00012244,2]
[426785530,1782832238000,-277.34991272,0.00012244,2]
[426785533,1782832238000,-983.96006241,0.00012244,2]
[426785531,1782832238000,-983.96006241,0.00012244,2]
[426785534,1782832238000,-983.96006235,0.00012244,2]
[426785535,1782832238000,-983.96006235,0.00012244,2]
[426785529,1782832238000,-706.61014969,0.00012244,2]
[426785527,1782832238000,-252.9308483,0.00012244,2]
[426785522,1782832238000,-983.96006241,0.00012244,2]
[426785526,1782832238000,-983.96006241,0.00012244,2]
[426785524,1782832238000,-983.96006241,0.00012244,2]
[426785525,1782832238000,-983.96006241,0.00012244,2]
[426785520,1782832238000,-151.0,0.00012062,2]
[426785523,1782832238000,-983.96006241,0.00012244,2]
[426785521,1782832238000,-214.30497486,0.00012244,2]
[426785528,1782832238000,-731.02921411,0.00012244,2]
[426785536,1782832238000,-500.0,0.00012244,2]
[426785532,1782832238000,-983.96006241,0.00012244,2]
[426785544,1782832238000,-888.0,0.00012245,2]
[426785537,1782832238000,-500.0,0.00012244,2]
[426785555,1782832238000,-886.0,0.00012262,2]
[426785554,1782832238000,-908.0,0.00012262,2]
[426785553,1782832238000,-150.0,0.00012262,2]
[426785552,1782832238000,-150.0,0.00012262,2]
[426785550,1782832238000,-151.0,0.00012262,2]
[426785549,1782832238000,-151.0,0.00012262,2]
[426785548,1782832238000,-304.22799609,0.00012245,2]
[426785551,1782832238000,-153.0,0.00012262,2]
[426785546,1782832238000,-199.23380795,0.00012245,2]
[426785539,1782832238000,-500.0,0.00012244,2]
[426785541,1782832238000,-170.0,0.00012244,2]
[426785543,1782832238000,-170.2714225,0.00012244,2]
[426785547,1782832238000,-399.53819596,0.00012245,2]
[426785545,1782832238000,-887.0,0.00012245,2]
[426785542,1782832238000,-170.0,0.00012244,2]
[426785538,1782832238000,-231.80973191,0.00012244,2]
[426785582,1782832239000,-889.0,0.00012263,2]
[426785575,1782832239000,-897.0,0.00012263,2]
[426785577,1782832239000,-150.0,0.00012263,2]
[426785576,1782832239000,-151.0,0.00012263,2]
[426785579,1782832239000,-187.19521294,0.00012263,2]
[426785581,1782832239000,-892.0,0.00012263,2]
[426785580,1782832239000,-151.0,0.00012263,2]
[426785588,1782832239000,-910.0,0.00012271,2]
[426785583,1782832239000,-152.0,0.00012263,2]
[426785584,1782832239000,-917.0,0.00012264,2]
[426785585,1782832239000,-151.0,0.00012264,2]
[426785593,1782832239000,-150.0,0.00012285,2]
[426785594,1782832239000,-910.0,0.00012291,2]
[426785586,1782832239000,-150.0,0.00012268,2]
[426785592,1782832239000,-150.0,0.00012285,2]
[426785578,1782832239000,-151.0,0.00012263,2]
[426785573,1782832239000,-152.0,0.00012263,2]
[426785563,1782832239000,-537.0226489,0.00012262,2]
[426785569,1782832239000,-151.0,0.00012263,2]
[426785587,1782832239000,-151.0,0.00012268,2]
[426785558,1782832239000,-500.0,0.00012262,2]
[426785559,1782832239000,-500.0,0.00012262,2]
[426785560,1782832239000,-500.0,0.00012262,2]
[426785561,1782832239000,-258.01878225,0.00012262,2]
[426785556,1782832239000,-900.0,0.00012262,2]
[426785557,1782832239000,-157.86589902,0.00012262,2]
[426785574,1782832239000,-888.0,0.00012263,2]
[426785562,1782832239000,-500.0,0.00012262,2]
[426785572,1782832239000,-910.0,0.00012263,2]
[426785571,1782832239000,-150.0,0.00012263,2]
[426785568,1782832239000,-151.0,0.00012263,2]
[426785566,1782832239000,-902.0,0.00012263,2]
[426785567,1782832239000,-153.0,0.00012263,2]
[426785564,1782832239000,-898.0,0.00012262,2]
[426785570,1782832239000,-905.0,0.00012263,2]
[426785565,1782832239000,-890.0,0.00012262,2]
[426785590,1782832239000,-883.0,0.00012279,2]
[426785615,1782832239000,-884.0,0.00012782,2]
[426785591,1782832239000,-150.0,0.00012283,2]
[426785617,1782832239000,-500.0,0.00012792,2]
[426785618,1782832239000,-8163.39555581,0.00012829,2]
[426785620,1782832239000,-372.93,0.00012893,2]
[426785619,1782832239000,-898.0,0.00012875,2]
[426785616,1782832239000,-903.0,0.00012782,2]
[426785622,1782832239000,-9999.99,0.00012893,2]
[426785621,1782832239000,-210.57,0.00012893,2]
[426785626,1782832239000,-1342.4,0.00012893,2]
[426785627,1782832239000,-5836.96,0.00012893,2]
[426785589,1782832239000,-882.0,0.00012271,2]
[426785624,1782832239000,-261.61,0.00012893,2]
[426785628,1782832239000,-150.99,0.00012893,2]
[426785623,1782832239000,-5307.83,0.00012893,2]
[426785629,1782832239000,-3879.76995162,0.00012893,2]
[426785630,1782832239000,-1949.93130451,0.00012893,2]
[426785614,1782832239000,-151.0,0.00012675,2]
[426785612,1782832239000,-903.0,0.00012636,2]
[426785625,1782832239000,-45390.79,0.00012893,2]
[426785610,1782832239000,-151.0,0.0001258,2]
[426785613,1782832239000,-895.0,0.00012647,2]
[426785596,1782832239000,-189.87395337,0.00012329,2]
[426785595,1782832239000,-172.13,0.00012329,2]
[426785598,1782832239000,-152.0,0.0001235,2]
[426785601,1782832239000,-150.0,0.00012404,2]
[426785602,1782832239000,-160.0,0.0001243,2]
[426785600,1782832239000,-892.0,0.00012367,2]
[426785599,1782832239000,-888.0,0.00012367,2]
[426785597,1782832239000,-151.0,0.0001235,2]
[426785605,1782832239000,-678.62,0.00012461,2]
[426785604,1782832239000,-897.0,0.0001245,2]
[426785606,1782832239000,-1583.81,0.0001248,2]
[426785609,1782832239000,-150.0,0.00012526,2]
[426785607,1782832239000,-888.0,0.00012515,2]
[426785611,1782832239000,-152.0,0.00012597,2]
[426785603,1782832239000,-911.0,0.0001245,2]
[426785608,1782832239000,-500.0,0.00012518,2]
[426785649,1782832240000,-14221.43445143,0.00013599,2]
[426785652,1782832240000,-500.0,0.00013698,2]
[426785650,1782832240000,-500.0,0.00013698,2]
[426785655,1782832240000,-962.2619641,0.00013708,2]
[426785651,1782832240000,-500.0,0.00013698,2]
[426785654,1782832240000,-200.0,0.00013699,2]
[426785657,1782832240000,-27131.22527081,0.00013715,2]
[426785656,1782832240000,-297.8750942,0.00013714,2]
[426785648,1782832240000,-2500.0,0.00013599,2]
[426785653,1782832240000,-500.0,0.00013698,2]
[426785646,1782832240000,-6953.3884,0.00013599,2]
[426785638,1782832240000,-500.0,0.00013066,2]
[426785643,1782832240000,-260.09151889,0.00013378,2]
[426785645,1782832240000,-150.0,0.00013457,2]
[426785644,1782832240000,-170.24,0.00013393,2]
[426785642,1782832240000,-150.24552321,0.00013378,2]
[426785641,1782832240000,-500.0,0.0001334,2]
[426785640,1782832240000,-255.0,0.00013243,2]
[426785658,1782832240000,-430.73904418,0.00013938,2]
[426785636,1782832240000,-894.0,0.0001297,2]
[426785637,1782832240000,-163.9,0.00013006,2]
[426785635,1782832240000,-914.0,0.0001297,2]
[426785634,1782832240000,-4170.28874387,0.00012893,2]